fUST/lending_fUST_20250909
["ID","MTS","AMOUNT","RATE_DAILY","PERIOD"]
[384405746,1757385043292,-480.0,0.00013698,2]
[384405747,1757385043302,-480.0,0.00013698,2]
[384405748,1757385043311,-480.0,0.00013698,2]
[384405749,1757385043321,-480.0,0.00013698,2]
[384405750,1757385043331,-480.0,0.00013698,2]
[384405751,1757385043342,-480.0,0.00013698,2]
[384405752,1757385043352,-480.0,0.00013698,2]
[384405753,1757385043362,-480.0,0.00013698,2]
[384405754,1757385043372,-484.82629729,0.00013698,2]
[384405755,1757385043382,-480.0,0.00013698,2]
[384405756,1757385043392,-480.0,0.00013698,2]
[384405757,1757385043402,-488.1268235,0.00013698,2]
[384405758,1757385043412,-2310.09,0.00013698,2]
[384405759,1757385043423,-480.0,0.00013698,2]
[384405760,1757385043433,-480.0,0.00013698,2]
[384405761,1757385043443,-480.0,0.00013698,2]
[384405762,1757385043452,-480.0,0.00013698,2]
[384405763,1757385043462,-486.16430098,0.00013698,2]
[384405764,1757385043472,-489.87089073,0.00013698,2]
[384405765,1757385043481,-480.0,0.00013698,2]
[384405766,1757385043491,-486.88787084,0.00013698,2]
[384405767,1757385043502,-709.88,0.00013698,2]
[384405768,1757385043511,-480.0,0.00013698,2]
[384405769,1757385043520,-484.24380089,0.00013698,2]
[384405770,1757385043530,-774.52,0.00013698,2]
[384405771,1757385043541,-892.26,0.00013698,2]
[384405772,1757385043551,-313.19894887,0.00013698,2]
[384405773,1757385043560,-480.0,0.00013698,2]
[384405774,1757385043570,-480.0,0.00013698,2]
[384405775,1757385043580,-485.00576301,0.00013698,2]
[384405776,1757385043593,-480.0,0.00013698,2]
[384405777,1757385043602,-463.88704945,0.00013698,2]
[384405778,1757385043611,-480.0,0.00013698,2]
[384405779,1757385043621,-770.02,0.00013698,2]
[384405780,1757385043631,-480.0,0.00013698,2]
[384405781,1757385043641,-480.0,0.00013698,2]
[384405782,1757385043651,-480.0,0.00013698,2]
[384405783,1757385043660,-481.92189587,0.00013698,2]
[384405784,1757385043671,-480.0,0.00013698,2]
[384405785,1757385043681,-480.0,0.00013698,2]
[384405786,1757385043690,-417.11450283,0.00013698,2]
[384405787,1757385043700,-480.0,0.00013698,2]
[384405788,1757385043709,-485.16218262,0.00013698,2]
[384405789,1757385043719,-480.0,0.00013698,2]
[384405790,1757385043728,-480.0,0.00013698,2]
[384405791,1757385043737,-489.26997838,0.00013698,2]
[384405792,1757385043747,-480.0,0.00013698,2]
[384405793,1757385043756,-481.31212355,0.00013698,2]
[384405794,1757385043765,-480.0,0.00013698,2]
[384405795,1757385043775,-480.0,0.00013698,2]
[384405796,1757385043784,-7183.56,0.00013698,2]
[384405797,1757385043793,-480.0,0.00013698,2]
[384405798,1757385043802,-480.0,0.00013698,2]
[384405799,1757385043812,-480.0,0.00013698,2]
[384405800,1757385043822,-485.59949617,0.00013698,2]
[384405801,1757385043833,-484.53881396,0.00013698,2]
[384405802,1757385043842,-2758.77,0.00013698,2]
[384405803,1757385043851,-480.0,0.00013698,2]
[384405804,1757385043861,-480.0,0.00013698,2]
[384405805,1757385043870,-484.57731669,0.00013698,2]
[384405806,1757385043880,-480.0,0.00013698,2]
[384405807,1757385043890,-668.59,0.00013698,2]
[384405808,1757385043900,-480.0,0.00013698,2]
[384405809,1757385043910,-500.0,0.00013698,2]
[384405810,1757385043919,-500.0,0.00013698,2]
[384405811,1757385043929,-500.0,0.00013698,2]
[384405812,1757385043939,-500.0,0.00013698,2]
[384405813,1757385043948,-500.0,0.00013698,2]
[384405814,1757385043957,-483.15123814,0.00013698,2]
[384405815,1757385043966,-480.0,0.00013698,2]
[384405816,1757385043976,-509.15245193,0.00013698,2]
[384405817,1757385043985,-480.0,0.00013698,2]
[384405818,1757385043996,-480.0,0.00013698,2]
[384405819,1757385044008,-547.91,0.00013698,2]
[384405820,1757385044018,-547.91,0.00013698,2]
[384405821,1757385044029,-547.91,0.00013698,2]
[384405822,1757385044039,-514.83,0.00013698,2]
[384405823,1757385044048,-547.91,0.00013698,2]
[384405824,1757385044059,-461.25352109,0.00013698,2]
[384405825,1757385044068,-188.52948929,0.00013698,2]
[384405826,1757385044078,-547.91,0.00013698,2]
[384405827,1757385044089,-547.91,0.00013698,2]
[384405828,1757385044098,-547.91,0.00013698,2]
[384405829,1757385044109,-547.91,0.00013698,2]
[384405830,1757385044119,-480.0,0.00013698,2]
[384405831,1757385044129,-547.91,0.00013698,2]
[384405832,1757385044139,-547.91,0.00013698,2]
[384405833,1757385044148,-547.91,0.00013698,2]
[384405834,1757385044158,-547.91,0.00013698,2]
[384405835,1757385044167,-480.0,0.00013698,2]
[384405836,1757385044178,-547.91,0.00013698,2]
[384405837,1757385044187,-197.97843043,0.00013698,2]
[384405838,1757385044197,-528.99682805,0.00013698,2]
[384405839,1757385044207,-547.91,0.00013698,2]
[384405840,1757385044216,-547.91,0.00013698,2]
[384405841,1757385044225,-547.91,0.00013698,2]
[384405842,1757385044235,-547.91,0.00013698,2]
[384405843,1757385044244,-547.91,0.00013698,2]
[384405844,1757385044254,-547.91,0.00013698,2]
[384405845,1757385044263,-302.82610487,0.00013698,2]
[384405846,1757385044273,-547.91,0.00013698,2]
[384405847,1757385044282,-547.91,0.00013698,2]
[384405848,1757385044291,-547.91,0.00013698,2]
[384405849,1757385044301,-547.91,0.00013698,2]
[384405850,1757385044311,-548.09987239,0.00013698,2]
[384405851,1757385044320,-529.51,0.00013698,2]
[384405852,1757385044331,-489.89294991,0.00013698,2]
[384405853,1757385044341,-483.00612376,0.00013698,2]
[384405854,1757385044351,-157.0,0.00013698,2]
[384405855,1757385044360,-157.0,0.00013698,2]
[384405856,1757385044370,-157.0,0.00013698,2]
[384405857,1757385044379,-480.0,0.00013698,2]
[384405858,1757385044389,-480.0,0.00013698,2]
[384405859,1757385044399,-1163.66,0.00013698,2]
[384405860,1757385044409,-239.65618874,0.00013698,2]
[384405861,1757385044419,-482.61779957,0.00013698,2]
[384405862,1757385044428,-500.0,0.00013698,2]
[384405863,1757385044438,-500.0,0.00013698,2]
[384405864,1757385044447,-500.0,0.00013698,2]
[384405865,1757385044457,-500.0,0.00013698,2]
[384405866,1757385044467,-500.0,0.00013698,2]
[384405867,1757385044476,-480.0,0.00013698,2]
[384405868,1757385044485,-490.93746389,0.00013698,2]
[384405869,1757385044494,-500.0,0.00013698,2]
[384405870,1757385044504,-500.0,0.00013698,2]
[384405871,1757385044513,-481.67628177,0.00013698,2]
[384405872,1757385044522,-500.0,0.00013698,2]
[384405873,1757385044533,-500.0,0.00013698,2]
[384405874,1757385044542,-500.0,0.00013698,2]
[384405875,1757385044552,-603.46468639,0.00013698,2]
[384405876,1757385044563,-500.0,0.00013698,2]
[384405877,1757385044572,-500.0,0.00013698,2]
[384405878,1757385044586,-500.0,0.00013698,2]
[384405879,1757385044597,-500.0,0.00013698,2]
[384405880,1757385044607,-500.0,0.00013698,2]
[384405881,1757385044614,-500.0,0.00013698,2]
[384405882,1757385044622,-500.0,0.00013698,2]
[384405883,1757385044631,-630.76,0.00013698,2]
[384405884,1757385044639,-480.0,0.00013698,2]
[384405885,1757385044649,-487.05767751,0.00013698,2]
[384405886,1757385044657,-482.5086433,0.00013698,2]
[384405887,1757385044665,-482.98816849,0.00013698,2]
[384405888,1757385044675,-482.87288101,0.00013698,2]
[384405889,1757385044688,-288.77699689,0.00013698,2]
[384405890,1757385044698,-482.41538039,0.00013698,2]
[384405891,1757385044707,-480.0,0.00013698,2]
[384405892,1757385044716,-480.0,0.00013698,2]
[384405893,1757385044725,-489.89498484,0.00013698,2]
[384405894,1757385044735,-481.96674809,0.00013698,2]
[384405895,1757385044744,-822.52,0.00013698,2]
[384405896,1757385044754,-489.27116245,0.00013698,2]
[384405897,1757385044763,-484.26679984,0.00013698,2]
[384405898,1757385044773,-480.0,0.00013698,2]
[384405899,1757385044783,-480.0,0.00013698,2]
[384405900,1757385044793,-482.34669603,0.00013698,2]
[384405901,1757385044802,-484.44772773,0.00013698,2]
[384405902,1757385044812,-1179.05,0.00013698,2]
[384405903,1757385044821,-485.97299578,0.00013698,2]
[384405904,1757385044830,-483.26301572,0.00013698,2]
[384405905,1757385044839,-480.0,0.00013698,2]
[384405906,1757385044849,-680.57,0.00013698,2]
[384405907,1757385044858,-481.93991978,0.00013698,2]
[384405908,1757385044868,-480.0,0.00013698,2]
[384405909,1757385044878,-482.36672709,0.00013698,2]
[384405910,1757385044887,-3276.76,0.00013698,2]
[384405911,1757385044897,-484.82869876,0.00013698,2]
[384405912,1757385044906,-481.32757708,0.00013698,2]
[384405913,1757385044916,-480.0,0.00013698,2]
[384405914,1757385044925,-480.0,0.00013698,2]
[384405915,1757385044935,-490.32318951,0.00013698,2]
[384405916,1757385044944,-485.20578567,0.00013698,2]
[384405917,1757385044954,-480.0,0.00013698,2]
[384405918,1757385044965,-484.51500716,0.00013698,2]
[384405919,1757385044974,-483.6418075,0.00013698,2]
[384405920,1757385044983,-480.0,0.00013698,2]
[384405921,1757385044993,-489.17870123,0.00013698,2]
[384405922,1757385045002,-481.81033578,0.00013698,2]
[384405923,1757385045012,-1476.93,0.00013698,2]
[384405924,1757385045022,-677.54,0.00013698,2]
[384405925,1757385045031,-484.36699093,0.00013698,2]
[384405926,1757385045041,-482.25421264,0.00013698,2]
[384405927,1757385045050,-480.0,0.00013698,2]
[384405928,1757385045059,-480.0,0.00013698,2]
[384405929,1757385045069,-483.24793686,0.00013698,2]
[384405930,1757385045078,-480.0,0.00013698,2]
[384405931,1757385045087,-480.0,0.00013698,2]
[384405932,1757385045098,-494.12119013,0.00013698,2]
[384405933,1757385045107,-483.28932409,0.00013698,2]
[384405934,1757385045116,-480.0,0.00013698,2]
[384405935,1757385045125,-480.0,0.00013698,2]
[384405936,1757385045135,-480.0,0.00013698,2]
[384405937,1757385045145,-483.23194535,0.00013698,2]
[384405938,1757385045155,-1754.11,0.00013698,2]
[384405939,1757385045165,-482.54786845,0.00013698,2]
[384405940,1757385045174,-484.18053668,0.00013698,2]
[384405941,1757385045183,-483.65736576,0.00013698,2]
[384405942,1757385045194,-480.0,0.00013698,2]
[384405943,1757385045203,-480.0,0.00013698,2]
[384405944,1757385045213,-491.97735452,0.00013698,2]
[384405945,1757385045222,-486.03279705,0.00013698,2]
[384405946,1757385045232,-482.10485694,0.00013698,2]
[384405947,1757385045241,-486.38961834,0.00013698,2]
[384405948,1757385045250,-2073.23,0.00013698,2]
[384405949,1757385045260,-373.48616033,0.00013698,2]
[384405950,1757385045269,-344.06921062,0.00013698,2]
[384405952,1757385045279,-157.05640685,0.00013698,2]
[384405956,1757385045405,-157.0,0.00013698,2]
[384405957,1757385045415,-157.0,0.00013698,2]
[384405958,1757385045425,-986.27,0.00013698,2]
[384405959,1757385045435,-480.0,0.00013698,2]
[384405960,1757385045445,-500.0,0.00013698,2]
[384405961,1757385045454,-500.0,0.00013698,2]
[384405962,1757385045463,-398.80027783,0.00013698,2]
[384405963,1757385045473,-500.0,0.00013698,2]
[384405964,1757385045482,-157.0,0.00013698,2]
[384405965,1757385045491,-480.0,0.00013698,2]
[384405966,1757385045501,-480.0,0.00013698,2]
[384405967,1757385045510,-480.0,0.00013698,2]
[384405968,1757385045519,-480.0,0.00013698,2]
[384405969,1757385045529,-1937.73,0.00013698,2]
[384405970,1757385045538,-480.0,0.00013698,2]
[384405971,1757385045548,-480.0,0.00013698,2]
[384405972,1757385045558,-484.39895296,0.00013698,2]
[384405973,1757385045567,-480.0,0.00013698,2]
[384405974,1757385045584,-570.9,0.00013698,2]
[384405975,1757385045595,-480.0,0.00013698,2]
[384405976,1757385045604,-480.0,0.00013698,2]
[384405977,1757385045613,-480.0,0.00013698,2]
[384405978,1757385045623,-489.39816283,0.00013698,2]
[384405979,1757385045633,-483.92633891,0.00013698,2]
[384405980,1757385045641,-480.0,0.00013698,2]
[384405981,1757385045650,-481.8061702,0.00013698,2]
[384405982,1757385045658,-480.0,0.00013698,2]
[384405983,1757385045668,-227.3444717,0.00013698,2]
[384405984,1757385045678,-486.9194041,0.00013698,2]
[384405985,1757385045687,-480.0,0.00013698,2]
[384405986,1757385045697,-488.58015089,0.00013698,2]
[384405987,1757385045706,-480.0,0.00013698,2]
[384405988,1757385045715,-480.0,0.00013698,2]
[384405989,1757385045725,-483.54758844,0.00013698,2]
[384405990,1757385045734,-480.0,0.00013698,2]
[384405991,1757385045743,-488.49222357,0.00013698,2]
[384405993,1757385045753,-480.0,0.00013698,2]
[384405995,1757385045762,-480.0,0.00013698,2]
[384405996,1757385045772,-598.11221727,0.00013698,2]
[384405997,1757385045785,-480.0,0.00013698,2]
[384405998,1757385045795,-491.69296522,0.00013698,2]
[384406000,1757385045804,-480.0,0.00013698,2]
[384406002,1757385045814,-845.12,0.00013698,2]
[384406004,1757385045823,-491.31268156,0.00013698,2]
[384406005,1757385045832,-480.0,0.00013698,2]
[384406006,1757385045842,-612.15,0.00013698,2]
[384406007,1757385045851,-480.0,0.00013698,2]
[384406008,1757385045861,-483.98560102,0.00013698,2]
[384406009,1757385045870,-1468.07,0.00013698,2]
[384406010,1757385045879,-484.31609714,0.00013698,2]
[384406011,1757385045889,-480.0,0.00013698,2]
[384406012,1757385045899,-1566.2,0.00013698,2]
[384406013,1757385045909,-486.85317792,0.00013698,2]
[384406014,1757385045919,-487.19788777,0.00013698,2]
[384406015,1757385045928,-484.80547237,0.00013698,2]
[384406016,1757385045938,-480.0,0.00013698,2]
[384406017,1757385045948,-484.06581446,0.00013698,2]
[384406018,1757385045957,-480.0,0.00013698,2]
[384406019,1757385045967,-513.44761188,0.00013698,2]
[384406020,1757385045976,-480.0,0.00013698,2]
[384406021,1757385045985,-480.0,0.00013698,2]
[384406022,1757385045995,-571.75,0.00013698,2]
[384406023,1757385046004,-669.58,0.00013698,2]
[384406024,1757385046013,-485.51026699,0.00013698,2]
[384406025,1757385046023,-4402.34,0.00013698,2]
[384406026,1757385046032,-480.0,0.00013698,2]
[384406027,1757385046041,-480.0,0.00013698,2]
[384406028,1757385046051,-627.34953314,0.00013698,2]
[384406029,1757385046060,-480.0,0.00013698,2]
[384406030,1757385046070,-484.79206566,0.00013698,2]
[384406031,1757385046079,-486.79009347,0.00013698,2]
[384406033,1757385046089,-480.0,0.00013698,2]
[384406035,1757385046098,-480.0,0.00013698,2]
[384406036,1757385046107,-480.0,0.00013698,2]
[384406037,1757385046118,-4027.0,0.00013698,2]
[384406038,1757385046127,-400.0,0.00013698,2]
[384406039,1757385046137,-496.44996399,0.00013698,2]
[384406040,1757385046149,-484.36561541,0.00013698,2]
[384406041,1757385046158,-480.0,0.00013698,2]
[384406042,1757385046169,-3616.58,0.00013698,2]
[384406043,1757385046179,-489.38274467,0.00013698,2]
[384406044,1757385046189,-480.0,0.00013698,2]
[384406045,1757385046199,-490.23451119,0.00013698,2]
[384406046,1757385046209,-480.0,0.00013698,2]
[384406047,1757385046219,-152.5291597,0.00013698,2]
[384406048,1757385046228,-492.72334739,0.00013698,2]
[384406049,1757385046238,-480.0,0.00013698,2]
[384406050,1757385046248,-483.49013081,0.00013698,2]
[384406051,1757385046258,-480.0,0.00013698,2]
[384406052,1757385046267,-480.0,0.00013698,2]
[384406053,1757385046279,-489.84591939,0.00013698,2]
[384406054,1757385046289,-482.33567945,0.00013698,2]
[384406055,1757385046299,-485.66613818,0.00013698,2]
[384406056,1757385046309,-480.0,0.00013698,2]
[384406057,1757385046319,-480.0,0.00013698,2]
[384406058,1757385046330,-482.49653653,0.00013698,2]
[384406059,1757385046340,-675.17,0.00013698,2]
[384406060,1757385046350,-480.0,0.00013698,2]
[384406061,1757385046360,-480.0,0.00013698,2]
[384406062,1757385046370,-570.91512047,0.00013698,2]
[384406063,1757385046380,-480.0,0.00013698,2]
[384406064,1757385046390,-480.0,0.00013698,2]
[384406065,1757385046405,-1212.37,0.00013698,2]
[384406066,1757385046415,-289.72900045,0.00013698,2]
[384406067,1757385046425,-260.026,0.00013698,2]
[384406068,1757385046435,-150.22,0.00013698,2]
[384406069,1757385046445,-150.223,0.00013698,2]
[384406070,1757385046456,-150.124,0.00013698,2]
[384406071,1757385046466,-246.083,0.00013698,2]
[384406072,1757385046475,-3032.512469,0.00013699,2]
[384406073,1757385046484,-151.0,0.00013699,2]
[384406074,1757385046493,-151.0,0.00013699,2]
[384406075,1757385046502,-151.0,0.00013699,2]
[384406076,1757385046511,-151.0,0.00013699,2]
[384406077,1757385046520,-151.0,0.00013699,2]
[384406078,1757385046528,-151.0,0.00013699,2]
[384406079,1757385046538,-151.0,0.00013699,2]
[384406080,1757385046547,-151.0,0.00013699,2]
[384406081,1757385046556,-151.0,0.00013699,2]
[384406082,1757385046565,-151.0,0.00013699,2]
[384406083,1757385046574,-151.0,0.00013699,2]
[384406084,1757385046586,-151.0,0.00013699,2]
[384406085,1757385046595,-151.0,0.00013699,2]
[384406086,1757385046604,-151.0,0.00013699,2]
[384406087,1757385046611,-277.706454,0.00013699,2]
[384406088,1757385046618,-291.156935,0.00013699,2]
[384406089,1757385046628,-291.156935,0.00013699,2]
[384406090,1757385046637,-291.156935,0.00013699,2]
[384406091,1757385046651,-291.156935,0.00013699,2]
[384406092,1757385046661,-291.156935,0.00013699,2]
[384406093,1757385046670,-291.156935,0.00013699,2]
[384406094,1757385046680,-291.156935,0.00013699,2]
[384406095,1757385046690,-291.156935,0.00013699,2]
[384406096,1757385046699,-291.156935,0.00013699,2]
[384406097,1757385046709,-291.156935,0.00013699,2]
[384406098,1757385046719,-291.156935,0.00013699,2]
[384406099,1757385046729,-291.156935,0.00013699,2]
[384406100,1757385046739,-291.156935,0.00013699,2]
[384406101,1757385046748,-291.156935,0.00013699,2]
[384406102,1757385046758,-291.156935,0.00013699,2]
[384406103,1757385046767,-291.156935,0.00013699,2]
[384406104,1757385046777,-291.156935,0.00013699,2]
[384406105,1757385046787,-291.156935,0.00013699,2]
[384406106,1757385046797,-291.156935,0.00013699,2]
[384406107,1757385046806,-291.156941,0.00013699,2]
[384406108,1757385046816,-151.0,0.00013699,2]
[384406109,1757385046825,-151.0,0.00013699,2]
[384406110,1757385046835,-151.0,0.00013699,2]
[384406111,1757385046845,-151.0,0.00013699,2]
[384406112,1757385046854,-151.0,0.00013699,2]
[384406113,1757385046863,-151.0,0.00013699,2]
[384406114,1757385046873,-151.0,0.00013699,2]
[384406115,1757385046882,-151.0,0.00013699,2]
[384406116,1757385046893,-151.0,0.00013699,2]
[384406117,1757385046902,-151.0,0.00013699,2]
[384406118,1757385046911,-151.0,0.00013699,2]
[384406119,1757385046921,-165.90154,0.00013699,2]
[384406120,1757385046931,-920.5025161,0.00013699,2]
[384406121,1757385046940,-17061.5258979,0.00013699,2]
[384406122,1757385046950,-1082.824783,0.00013699,2]
[384406123,1757385046960,-151.0,0.00013699,2]
[384406124,1757385046969,-151.0,0.00013699,2]
[384406125,1757385046978,-152.338196,0.00013699,2]
[384406126,1757385046987,-151.0,0.00013699,2]
[384406127,1757385046997,-151.0,0.00013699,2]
[384406128,1757385047007,-165.566439,0.00013699,2]
[384406129,1757385047017,-500.0,0.00013699,2]
[384406130,1757385047027,-500.0,0.00013699,2]
[384406131,1757385047036,-500.0,0.00013699,2]
[384406132,1757385047046,-500.0,0.00013699,2]
[384406133,1757385047055,-500.0,0.00013699,2]
[384406134,1757385047065,-500.0,0.00013699,2]
[384406135,1757385047076,-500.0,0.00013699,2]
[384406136,1757385047086,-500.0,0.00013699,2]
[384406137,1757385047095,-500.0,0.00013699,2]
[384406138,1757385047105,-500.0,0.00013699,2]
[384406139,1757385047116,-500.0,0.00013699,2]
[384406140,1757385047126,-500.0,0.00013699,2]
[384406141,1757385047135,-500.0,0.00013699,2]
[384406142,1757385047146,-500.0,0.00013699,2]
[384406143,1757385047156,-500.0,0.00013699,2]
[384406144,1757385047166,-500.0,0.00013699,2]
[384406145,1757385047176,-500.0,0.00013699,2]
[384406146,1757385047186,-500.0,0.00013699,2]
[384406147,1757385047196,-500.0,0.00013699,2]
[384406148,1757385047206,-500.0,0.00013699,2]
[384406149,1757385047216,-500.0,0.00013699,2]
[384406150,1757385047225,-500.0,0.00013699,2]
[384406151,1757385047235,-500.0,0.00013699,2]
[384406152,1757385047245,-500.0,0.00013699,2]
[384406153,1757385047255,-500.0,0.00013699,2]
[384406154,1757385047265,-500.0,0.00013699,2]
[384406155,1757385047275,-500.0,0.00013699,2]
[384406156,1757385047285,-500.0,0.00013699,2]
[384406157,1757385047294,-500.0,0.00013699,2]
[384406158,1757385047304,-500.0,0.00013699,2]
[384406159,1757385047314,-500.0,0.00013699,2]
[384406160,1757385047324,-500.0,0.00013699,2]
[384406161,1757385047334,-243.29546456,0.00013699,2]
[384406162,1757385047343,-500.0,0.00013699,2]
[384406163,1757385047353,-500.0,0.00013699,2]
[384406164,1757385047363,-2183.31810187,0.000137,2]
[384406165,1757385047373,-309.0,0.000137,2]
[384406166,1757385047383,-151.0,0.000137,2]
[384406167,1757385047396,-1970.37895376,0.000137,2]
[384406168,1757385047406,-2264.10087164,0.00013755,2]
[384406169,1757385047417,-314.0,0.0001376,2]
[384406170,1757385047427,-163.73,0.0001376,2]
[384406171,1757385047438,-163.73,0.0001376,2]
[384406172,1757385047449,-163.73,0.0001376,2]
[384406173,1757385047459,-163.73,0.0001376,2]
[384406174,1757385047469,-163.73,0.0001376,2]
[384406175,1757385047478,-160.71908655,0.00013799,2]
[384406176,1757385047486,-397.24280448,0.00013799,2]
[384406177,1757385047659,-102.75719552,0.00013799,2]
[384406178,1757385047787,-500.0,0.00013799,2]
[384406179,1757385047797,-595.23678138,0.000138,4]
[384406180,1757385047808,-358.7200018,0.000138,4]
[384406181,1757385048012,-46.04321682,0.000138,4]
[384406182,1757385048022,-151.0,0.000138,2]
[384406183,1757385048032,-151.0,0.000138,2]
[384406184,1757385048042,-151.0,0.000138,2]
[384406185,1757385048051,-161.6329859,0.000138,2]
[384406186,1757385048061,-161.6329859,0.000138,2]
[384406187,1757385048071,-161.6329859,0.000138,2]
[384406188,1757385048080,-151.0,0.000138,2]
[384406189,1757385048090,-161.6329859,0.000138,2]
[384406190,1757385048101,-306.0,0.000138,2]
[384406191,1757385048110,-161.6329859,0.000138,2]
[384406192,1757385048120,-161.6329859,0.000138,2]
[384406193,1757385048130,-153.0,0.000138,2]
[384406194,1757385048140,-161.6329859,0.000138,2]
[384406195,1757385048151,-153.0,0.000138,2]
[384406196,1757385048161,-287.5856806,0.000138,2]
[384406197,1757385048171,-295.4798062,0.000138,2]
[384406198,1757385048180,-161.6329859,0.000138,2]
[384406199,1757385048188,-1167.7284056,0.000138,2]
[384406200,1757385048197,-388.7550233,0.000138,2]
[384406201,1757385048207,-295.4798062,0.000138,2]
[384406202,1757385048216,-161.6329859,0.000138,2]
[384406203,1757385048226,-153.0,0.000138,2]
[384406204,1757385048235,-388.7550233,0.000138,2]
[384406205,1757385048245,-583.8642028,0.000138,2]
[384406206,1757385048254,-395.9584558,0.000138,2]
[384406207,1757385048265,-567.4602624,0.000138,2]
[384406208,1757385048274,-161.6329859,0.000138,2]
[384406209,1757385048284,-593.9925845,0.000138,2]
[384406210,1757385048294,-583.8642028,0.000138,2]
[384406211,1757385048304,-295.4798062,0.000138,2]
[384406212,1757385048314,-388.7550233,0.000138,2]
[384406213,1757385048324,-161.6329859,0.000138,2]
[384406214,1757385048333,-153.0,0.000138,2]
[384406215,1757385048343,-295.4798062,0.000138,2]
[384406216,1757385048354,-388.7550233,0.000138,2]
[384406217,1757385048364,-323.2659718,0.000138,2]
[384406218,1757385048374,-583.8642028,0.000138,2]
[384406219,1757385048383,-161.6329859,0.000138,2]
[384406220,1757385048395,-388.7550233,0.000138,2]
[384406221,1757385048406,-153.0,0.000138,2]
[384406222,1757385048416,-583.8642028,0.000138,2]
[384406223,1757385048426,-295.4798062,0.000138,2]
[384406224,1757385048436,-161.6329859,0.000138,2]
[384406225,1757385048445,-388.7550233,0.000138,2]
[384406226,1757385048455,-583.8642028,0.000138,2]
[384406227,1757385048465,-388.7550233,0.000138,2]
[384406228,1757385048475,-295.4798062,0.000138,2]
[384406229,1757385048484,-161.6329859,0.000138,2]
[384406230,1757385048494,-583.8642028,0.000138,2]
[384406231,1757385048503,-153.0,0.000138,2]
[384406232,1757385048513,-295.4798062,0.000138,2]
[384406233,1757385048524,-161.6329859,0.000138,2]
[384406234,1757385048533,-583.8642028,0.000138,2]
[384406235,1757385048543,-388.7550233,0.000138,2]
[384406236,1757385048552,-161.6329859,0.000138,2]
[384406237,1757385048562,-583.8642028,0.000138,2]
[384406238,1757385048572,-721.7649392,0.000138,2]
[384406239,1757385048582,-388.7550233,0.000138,2]
[384406240,1757385048594,-153.0,0.000138,2]
[384406241,1757385048604,-161.6329859,0.000138,2]
[384406242,1757385048614,-295.4798062,0.000138,2]
[384406243,1757385048623,-388.7550233,0.000138,2]
[384406244,1757385048633,-583.8642028,0.000138,2]
[384406245,1757385048642,-161.6329859,0.000138,2]
[384406246,1757385048655,-152.2941578,0.000138,2]
[384406247,1757385048665,-155.6024043,0.000138,2]
[384406248,1757385048675,-583.8642028,0.000138,2]
[384406249,1757385048685,-295.4798062,0.000138,2]
[384406250,1757385048695,-388.7550233,0.000138,2]
[384406251,1757385048706,-295.4798062,0.000138,2]
[384406252,1757385048716,-161.6329859,0.000138,2]
[384406253,1757385048726,-583.8642028,0.000138,2]
[384406254,1757385048735,-388.7550233,0.000138,2]
[384406255,1757385048746,-158.6810644,0.000138,2]
[384406256,1757385048755,-388.7550233,0.000138,2]